Cogmind - Beta 13 @@@ ROGUE MODE // 2024.04.11 @ 14:17:24 // Winter2019/RPGLIKE Player: H3-RMN Result: Destroyed by G-47 Trooper with Particle Gun Performance ------------- Evolutions (3) 1500 Regions Visited (5) 1000 Robots Destroyed (70) 350 Value Destroyed (2110) 2110 Prototype IDs (23) 460 Alien Tech Used (0) 0 Bonus (120) 120 TOTAL SCORE: 5540 Bonus ------- High Alert Combat Kills 120 Cogmind --------- Core Integrity 0/600 Matter 220/300 Energy 273/300 System Corruption 0% Temperature Warm (149) Movement Rolling (110) Ox2 Location -7/Factory Parts ------- > --- POWER (2) -------- Ion Engine Multi-Nuclear Core > --- PROPULSION (3) --- Flying CIT-Compact Exoskeleton Wheel > --- UTILITY (7) ------ Armored Scrap Engine Improved Terrain Scanner Gun Armor Improved Shield Generator Hacking Suite System Shield > --- WEAPON (2+2) ----- Assault Rifle Enhanced Autogun (+) KE Assault Construct/G Makeshift Axe (+) > --- INVENTORY (4) ---- Powered Armor Hacking Suite Precision Grenade Launcher Plasma Cutter Peak State ------------ > --- POWER ------------ Ion Engine Multi-Nuclear Core > --- PROPULSION ------- Flying CIT-Compact Exoskeleton Wheel > --- UTILITY ---------- Armored Scrap Engine Improved Terrain Scanner Gun Armor Improved Shield Generator Hacking Suite System Shield > --- WEAPON ----------- Enhanced Autogun Precision Grenade Launcher KE Assault Construct/G Makeshift Axe > --- INVENTORY -------- Powered Armor Hacking Suite Assault Rifle Plasma Cutter [Rating: 68] Favorites ----------- Power Ion Engine Engine Ion Engine Power Core Constructs Propulsion Wheel Treads Light Treads Wheel Wheel Flight Unit Constructs Utility Improved Terrain Scanner Device Improved Terrain Scanner Processor Improved Targeting Computer Hackware Authchip [Processor] Protection Gun Armor Weapon Assault Rifle Energy Gun EM Pulse Gun Energy Cannon Subdweller Beam Cannon Ballistic Gun Assault Rifle Launcher Grenade Launcher Special Weapon Plasma Cutter Impact Weapon Impact Mace Slashing Weapon Makeshift Axe Special Melee Weapon Datajack Build | -11 -10 -10 -10 -9 -7 ------- Run | Yrd Mat Min Sub Rec Fac Slots Evolved 10 | 2 2 . 2 3 1 Power 1 | . . . . 1 . Propulsion 2 | 1 . . . 1 . Utility 6 | 1 1 . 2 1 1 Weapon 1 | . 1 . . . . Parts Attached 44 | 5 16 . 7 3 13 Power 2 | 1 1 . . . . Engine 2 | 1 1 . . . . Core . | . . . . . . Reactor . | . . . . . . Propulsion 3 | 2 1 . . . . Treads 1 | 1 . . . . . Leg . | . . . . . . Wheel 2 | 1 1 . . . . Hover . | . . . . . . Flight . | . . . . . . Utility 16 | 1 3 . 3 3 6 Device 9 | 1 2 . . 2 4 Storage . | . . . . . . Processor 1 | . 1 . . . . Hackware 3 | . . . . 1 2 Protection 3 | . . . 3 . . Artifact . | . . . . . . Weapon 23 | 1 11 . 4 . 7 Energy Gun 1 | . 1 . . . . Energy Cannon 1 | . . . 1 . . Ballistic Gun 12 | 1 5 . 2 . 4 Ballistic Cannon . | . . . . . . Launcher 5 | . 4 . . . 1 Special Weapon 1 | . . . . . 1 Impact Weapon 1 | . . . . . 1 Slashing Weapon 1 | . . . 1 . . Piercing Weapon . | . . . . . . Special Melee Weapon 1 | . 1 . . . . Unidentified Prototypes 2 | . . . . . 2 Corrupted Parts 1 | . . . . 1 . System Corruption 2 | . . . . 2 . Parts Lost . | . . . . . . Power . | . . . . . . Propulsion . | . . . . . . Utility . | . . . . . . Weapon . | . . . . . . Highest Loss Streak . | . . . . . . To Critical Strikes . | . . . . . . Average Slot Usage (%) 86 | . 92 100 87 73 84 Engine 9 | . 13 12 9 6 6 Core 1 | . . . . 1 6 Treads 8 | . 13 12 9 6 . Wheel 10 | . 13 12 9 6 11 Device 15 | . 18 25 9 16 17 Processor 8 | . 9 12 9 6 2 Hackware 1 | . . . . . 9 Protection 8 | . . . 17 6 6 Energy Gun 2 | . 7 12 . . 1 Energy Cannon 4 | . . . 9 3 4 Ballistic Gun 10 | . 12 12 10 6 10 Slashing Weapon 2 | . . . . 6 6 Naked Turns . | . . . . . . Heaviest Build 43 | 6 11 11 43 37 31 Greatest Support 20 | 20 15 15 15 15 15 Greatest Overweight (x) 2 | . . . 2 2 2 Average Overweight (x) 1 | . . . 1 1 1 Largest Inventory Capacity 4 | 2 2 2 3 3 4 Average Capacity 2 | 1 2 2 2 3 3 Most Carried 4 | 1 2 2 3 3 4 Average Carried 2 | . 1 2 2 2 3 Final Capacity 4 | 2 2 2 3 3 4 Final Carried 4 | 1 2 2 3 3 4 Scrap Engine Consumption 38 | . . . . 21 17 Constructs Created 3 | . . . . 3 . Constructs Modified 11 | . . . . 4 7 Class Distribution -------------------- 36% | Mutant 31% | Subdweller-Mutant 16% | Skirmisher 10% | Hacker-Skirmisher 3% | Scavenger-Mutant Dominant Class ---------------- Mutant | -10/Materials Skirmisher | -10/Mines Subdweller-Mutant | -10/Subcaves Mutant | -9/Recycling Hacker-Skirmisher | -7/Factory Resources | -11 -10 -10 -10 -9 -7 ----------- Run | Yrd Mat Min Sub Rec Fac Matter Collected 1348 | 256 372 45 238 57 380 Remotely . | . . . . . . Salvage Created 1977 | 18 234 152 496 464 613 Parts 148 | 4 35 13 33 25 38 Haulers Intercepted 2 | . 1 . . . 1 Recyclers Shooed . | . . . . . . Parts Field Recycled . | . . . . . . Retrieved Matter . | . . . . . . Parts Self-Destructed 26 | . . . 26 . . Prevented . | . . . . . . Kills | -11 -10 -10 -10 -9 -7 ------- Run | Yrd Mat Min Sub Rec Fac Combat Hostiles Destroyed 53 | . 13 6 12 8 14 Melee 12 | . . . . 7 5 Guns 20 | . 4 6 5 . 5 Cannons 11 | . . . 6 1 4 AOE 10 | . 9 . 1 . . Classes Destroyed 15 | 1 5 . 3 2 4 Worker 5 | . . . . . 5 Builder 2 | . 1 . . 1 . Tunneler 3 | 1 2 . . . . Hauler 2 | . 1 . . . 1 Recycler 1 | . . . . 1 . Operator 1 | . . . . . 1 Turret 2 | . . . 2 . . Watcher 1 | . 1 . . . . Swarmer 17 | . 9 . 3 1 4 Grunt 18 | . 4 6 . 2 6 Brawler 1 | . . . . . 1 Sentry 6 | . . . 1 4 1 Hunter 2 | . . . . . 2 Programmer 1 | . . . . 1 . Subdweller 8 | . . . 8 . . Best Kill Streak 5 | 1 3 2 3 3 5 Combat Bots Only 4 | . 3 2 3 3 4 Max Kills in Single Turn 3 | 1 3 1 1 1 1 Gunslinging . | . . . . . . Exploded 2 | . 2 . 1 . . Melee 1 | . . . . 1 1 Uniques/NPCs Destroyed . | . . . . . . Combat | -11 -10 -10 -10 -9 -7 -------- Run | Yrd Mat Min Sub Rec Fac Hostile Shots Fired 355 | . 32 32 94 31 166 Missed 130 | . 13 12 35 10 60 Damage Taken 2774 | . 294 296 781 263 1140 Core 1900 | . 238 248 422 190 802 Absorbed by Shields 403 | . . . . 13 390 Redirected to Core 1599 | . 187 169 363 177 703 Regen/Repaired (Parts) 86 | . . . . . 86 Core Remaining (%) 98 | 100 . . . 97 . Volleys Fired 210 | 5 61 31 61 5 47 Largest 3 | 1 2 2 2 2 3 Hottest 110 | 20 60 60 110 46 104 Shots Fired 361 | 5 63 61 107 7 118 Gun 281 | 5 52 61 64 6 93 Cannon 69 | . . . 43 1 25 Launcher 11 | . 11 . . . . Special . | . . . . . . Kinetic 249 | 5 31 30 58 7 118 Thermal 43 | . . . 43 . . Explosive 11 | . 11 . . . . Electromagnetic 58 | . 21 31 6 . . Robot Hit Streak 22 | 2 5 8 22 6 9 Robot Miss Streak 3 | 2 3 2 2 2 3 Penetration Max . | . . . . . . Secondary Targets 3 | . . 1 . . 2 Max Gunslinging Chain 1 | . . 1 . . 1 Shots Hit Robots 246 | 3 22 35 63 23 100 Core Hits 104 | 1 20 14 23 10 36 Critical Kills 1 | . . . 1 . . Critical Parts Destroyed . | . . . . . . Critical Strikes 5 | . . 1 2 1 1 Meltdown 1 | . . . 1 . . Corrupt 2 | . . 1 1 . . Sever 2 | . . . . 1 1 Melee Attacks 52 | . . . . 20 32 Impact . | . . . . . . Slashing 52 | . . . . 20 32 Piercing . | . . . . . . Sneak Attacks 9 | . . . . 4 5 Combat Hostiles 1 | . . . . 1 . Follow-up Attacks . | . . . . . . Damage Inflicted 5920 | 37 915 478 1431 873 2186 Guns 2429 | 37 242 478 746 54 872 Cannons 1061 | . . . 685 12 364 Explosions 673 | . 673 . . . . Melee 1757 | . . . . 807 950 Ramming . | . . . . . . Kinetic 2429 | 37 216 182 692 66 1236 Thermal 685 | . . . 685 . . Explosive 673 | . 673 . . . . Electromagnetic 376 | . 26 296 54 . . Impact . | . . . . . . Slashing 1757 | . . . . 807 950 Piercing . | . . . . . . Highest Corruption 3 | . . . . 3 1 Average Corruption 1 | . . . . 1 1 Corruption Purged 1 | . . . . . 1 Corruption Blocked . | . . . . . . Effects 10 | . . . . 6 4 Message Errors 1 | . . . . . 1 Matter Fused 3 | . . . . 2 1 Energy Discharges 1 | . . . . . 1 Data Loss (minor) 3 | . . . . 3 . Data Loss (major) 1 | . . . . . 1 Misfires 1 | . . . . 1 . Overload Shots . | . . . . . . Overflow Damage 256 | . 29 . . 117 110 Projectiles . | . . . . . . Explosions 29 | . 29 . . . . Melee 227 | . . . . 117 110 Knockbacks 9 | . . . . . 9 Impact . | . . . . . . Kinetic 9 | . . . . . 9 Secondary . | . . . . . . Self-Inflicted Damage 132 | . 132 . . . . Shots 5 | . 5 . . . . Rammed . | . . . . . . Targets Rammed . | . . . . . . Kicked . | . . . . . . Crushed . | . . . . . . Highest Temperature 429 | . . 17 . . 429 Average Temperature 132 | . . 10 . . 137 Received Heat Transfer 849 | . 33 186 270 70 290 Effects 2 | . . . . . 2 Energy Bleed 1 | . . . . . 1 Damage (minor) 1 | . . . . . 1 Siege Activations . | . . . . . . Robots Corrupted . | . . . . . . Combat Hostiles . | . . . . . . Parts Fried 1 | . . 1 . . . Impact Corruptions . | . . . . . . Robots Melted 1 | . . . 1 . . Combat Hostiles . | . . . . . . Parts Melted 2 | . . . 2 . . Heat Transferred 925 | . . . 925 . . Parts Sabotaged . | . . . . . . Parts Stolen . | . . . . . . Parts Stripped . | . . . . . . Power Chain Reactions . | . . . . . . Alert | -11 -10 -10 -10 -9 -7 ------- Run | Yrd Mat Min Sub Rec Fac Peak Influence 554 | 5 554 453 . 288 523 Initial 354 | . 3 183 . 178 354 Average 274 | 1 363 289 . 68 389 Maximum Alert Level 2 | . 2 2 . 1 2 Low Security (%) 30 | 100 13 13 . 87 . Level 1 44 | . 32 74 . 12 69 Level 2 24 | . 53 12 . . 30 Level 3 . | . . . . . . Level 4 . | . . . . . . Level 5 . | . . . . . . High Security . | . . . . . . Max Security . | . . . . . . Squads Dispatched 9 | . 3 . . . 6 Investigation 6 | . 3 . . . 3 Extermination 1 | . . . . . 1 Reinforcement 2 | . . . . . 2 Assault . | . . . . . . Garrison . | . . . . . . Intercept . | . . . . . . Searches Triggered . | . . . . . . Construction Impeded . | . . . . . . Haulers Reinforced 1 | . . . . . 1 Active Scanning Responses . | . . . . . . Cargo Convoy Interrupts . | . . . . . . Stealth | -11 -10 -10 -10 -9 -7 --------- Run | Yrd Mat Min Sub Rec Fac Distress Signals 5 | . 1 . . . 4 Communications Jammed . | . . . . . . Distress Signals . | . . . . . . Times Spotted 91 | . 20 6 38 8 19 Peak Tracking Total 5 | . 4 2 3 3 5 Tactical Retreats 9 | . 2 . 3 2 2 Traps | -11 -10 -10 -10 -9 -7 ------- Run | Yrd Mat Min Sub Rec Fac Traps Triggered 3 | . . . . . 3 Indirectly . | . . . . . . Trap Hack Attempts 10 | . 10 . . . . Triggered . | . . . . . . Disarmed 1 | . 1 . . . . Reprogrammed 6 | . 6 . . . . Reused 3 | . 1 . 2 . . Traps Extracted . | . . . . . . Installed 2 | . . . 2 . . Triggered 1 | . 1 . . . . Machines | -11 -10 -10 -10 -9 -7 ---------- Run | Yrd Mat Min Sub Rec Fac Machines Disabled 21 | . 11 7 3 . . Max in Single Turn 1 | . 1 1 1 . . Garrison Access 1 | . . . . . 1 Machines Repaired . | . . . . . . Machines Dismantled . | . . . . . . Machines Sabotaged . | . . . . . . Overloaded Fab Kills . | . . . . . . Hacking | -11 -10 -10 -10 -9 -7 --------- Run | Yrd Mat Min Sub Rec Fac Machines Accessed 29 | . 10 . 2 12 5 Terminals 16 | . 8 . . 6 2 Fabricators 1 | . . . . . 1 Repair Stations . | . . . . . . Recycling Units 8 | . 2 . . 6 . Scanalyzers 1 | . . . . . 1 Garrison Access 1 | . . . . . 1 Total Hacks 101 | . 40 . 6 43 12 Successful 70 | . 26 . 6 33 5 Failed 29 | . 13 . . 9 7 Catastrophic 4 | . 2 . . . 2 Database Lockouts 2 | . 1 . . 1 . Manual 43 | . 20 . . 22 1 Terminals 65 | . 34 . . 25 6 Fabricators 2 | . . . . . 2 Repair Stations . | . . . . . . Recycling Units 24 | . 6 . . 18 . Scanalyzers 3 | . . . . . 3 Garrison Access 1 | . . . . . 1 Terminal Hacks 41 | . 19 . 6 15 1 Record 5 | . . . 5 . . Part Schematic 6 | . 1 . . 4 1 Robot Schematic 2 | . 2 . . . . Robot Analysis 7 | . 5 . . 2 . Prototype ID Bank 8 | . 6 . . 2 . Terminal Index 1 | . . . . 1 . Alert Level 3 | . . . . 3 . Unreport Threat 3 | . . . . 3 . Locate Traps 3 | . 3 . . . . Reprogram Traps 1 | . 1 . . . . Zone Layout 1 | . 1 . . . . Derelict Proto ID Bank 1 | . . . 1 . . Fabricator Hacks 1 | . . . . . 1 Build 1 | . . . . . 1 Repair Station Hacks . | . . . . . . Recycling Unit Hacks 10 | . 3 . . 7 . Report Inventory 6 | . . . . 6 . Retrieve Components 4 | . 3 . . 1 . Scanalyzer 2 | . . . . . 2 Insert Component 1 | . . . . . 1 Analyze 1 | . . . . . 1 Garrison Access Hacks 1 | . . . . . 1 Seal Access 1 | . . . . . 1 Unauthorized Hacks 15 | . 4 . . 11 . Terminals 5 | . 2 . . 3 . Track 1 | . 1 . . . . Botnet 4 | . 1 . . 3 . Fabricators . | . . . . . . Repair Stations . | . . . . . . Recycling Units 10 | . 2 . . 8 . Reject 1 | . . . . 1 . Recyclers 1 | . . . . 1 . Mask 1 | . . . . 1 . Tunnel 7 | . 2 . . 5 . Scanalyzers . | . . . . . . Garrison Access . | . . . . . . Data Cores Recovered . | . . . . . . Used . | . . . . . . Hacking Detections 17 | . 7 . . 6 4 Full Trace Events 7 | . 3 . . 2 2 Feedback Events 1 | . . . . . 1 Corruption 1 | . . . . . 1 Feedback Blocked . | . . . . . . Robot Schematics Acquired 2 | . 2 . . . . Robots Built 1 | . . . . . 1 Authchips . | . . . . . . Time 58 | . . . . . 58 Total Robot Build Rating 3 | . . . . . 3 Part Schematics Acquired 7 | . 1 . . 4 2 Parts Built . | . . . . . . Authchips . | . . . . . . Time . | . . . . . . Total Part Build Rating . | . . . . . . Parts Repaired . | . . . . . . Time . | . . . . . . Parts Recycled . | . . . . . . Recycled Matter . | . . . . . . Retrieved Matter . | . . . . . . Retrieved Components 14 | . 7 . . 7 . Parts Scanalyzed 1 | . . . . . 1 Part Schematics Acquired 1 | . . . . . 1 Parts Damaged . | . . . . . . Bothacking | -11 -10 -10 -10 -9 -7 ------------ Run | Yrd Mat Min Sub Rec Fac Used RIF Installer . | . . . . . . Robots Hacked . | . . . . . . Non-combat . | . . . . . . Combat . | . . . . . . Robot Hacks Applied . | . . . . . . Relay Couplers Released . | . . . . . . Fabnet Peak Effective % . | . . . . . . Robots Rewired 1 | . . . . 1 . Allies Hacked . | . . . . . . Hacks Repelled . | . . . . . . Allies | -11 -10 -10 -10 -9 -7 -------- Run | Yrd Mat Min Sub Rec Fac Total Allies 2 | . . . . 1 1 Largest Group 1 | . . . . 1 1 Highest-Rated Group 27 | . . . . 27 27 Highest-Rated Ally 27 | . . . . 27 27 Total Orders . | . . . . . . Ally Attacks . | . . . . . . Total Damage . | . . . . . . Kills . | . . . . . . Allies Corrupted . | . . . . . . Allies Melted . | . . . . . . Intel | -11 -10 -10 -10 -9 -7 ------- Run | Yrd Mat Min Sub Rec Fac Robot Analysis Total 7 | . 5 . . 2 . Derelict Logs Recovered 3 | . . 1 2 . . Drone Launches . | . . . . . . Drone Recoveries . | . . . . . . Exploration | -11 -10 -10 -10 -9 -7 ------------- Run | Yrd Mat Min Sub Rec Fac Turns Passed 5893 | 58 954 627 2097 1014 1143 Spaces Moved 4049 | 47 870 379 1154 811 788 Core 3 | 3 . . . . . Treads 4 | 4 . . . . . Legs . | . . . . . . Wheels 4042 | 40 870 379 1154 811 788 Hover . | . . . . . . Flight . | . . . . . . Fastest Speed 50 | 50 80 80 80 95 95 Average Speed 96 | 84 80 80 109 95 104 Slowest Speed 160 | 160 80 80 110 110 110 Overloaded Moves . | . . . . . . Propulsion Burnouts . | . . . . . . Robots Hopped . | . . . . . . Cave-ins Triggered . | . . . . . . Exploration Rate (%) 61 | 3 96 80 70 98 19 Regions Visited 5 Branch Regions 3 Pre-discovered Areas 10 | . 2 2 1 5 . Known Exits Taken . | . . . . . . Unknown Exits Taken 5 | 1 1 1 1 1 . Scrap Searched 7 | . . 1 6 . . Spaces Dug 19 | . 17 . 1 . 1 Terrain Destroyed 77 | . 74 . 2 . 1 Melee 1 | . . . . . 1 Projectile 2 | . . . 2 . . AOE 74 | . 74 . . . . Terrain Rammed . | . . . . . . Walls Destroyed . | . . . . . . Machines Disabled . | . . . . . . Actions | -11 -10 -10 -10 -9 -7 --------- Run | Yrd Mat Min Sub Rec Fac Total 5660 | 57 1059 643 1882 1032 987 Wait 1134 | . 86 211 607 162 68 Move 4044 | 46 869 378 1153 810 788 Hop . | . . . . . . Pick Up 25 | 1 2 2 8 6 6 Fast Attach 22 | 5 4 . 6 1 6 Attach 5 | . 1 . 1 1 2 Detach 1 | . . . . 1 . Swap 17 | . 11 . . 1 5 Drop 34 | . 3 2 11 8 10 Fire 210 | 5 61 31 61 5 47 Melee 52 | . . . . 20 32 Ram . | . . . . . . Kick . | . . . . . . Crush . | . . . . . . Escape Stasis 8 | . . . . . 8 Rewire 4 | . . . . 4 . Trap 12 | . 10 . 2 . . Miscellaneous 92 | . 12 19 33 13 15 Route ------- -11/Scrapyard -10/Materials (discovered 5 exits: [*Mat x3] / [*Min] / Sub) -10/Mines (discovered 4 exits: [*Mat x2] / [*Exi] / *Sub) -10/Subcaves (discovered 2 exits: [*Mat] / *Rec) -9/Recycling -7/Factory (discovered 1 exit: [*Low]) History --------- Turn | Location | Event 11 | -11/Scrapyard | Upgraded with Propulsion slot (x1) 11 | -11/Scrapyard | Upgraded with Utility slot (x1) 17 | -11/Scrapyard | Discovered new exit (range 16) 59 | -11/Scrapyard | Entered Materials 229 | -10/Materials | Discovered new exit (range 14) 300 | -10/Materials | Build established: Mutant 412 | -10/Materials | Reached level 2 437 | -10/Materials | Upgraded with Utility slot (x1) 437 | -10/Materials | Upgraded with Weapon slot (x1) 467 | -10/Materials | Discovered new exit (range 13) 677 | -10/Materials | Discovered new exit (range 12) 686 | -10/Materials | Central database locked down 754 | -10/Materials | Discovered new exit (range 17) 874 | -10/Materials | Discovered new exit (range 15) 997 | -10/Materials | Build established: Skirmisher 1013 | -10/Materials | Entered Mines 1015 | -10/Mines | Reached level 3 1045 | -10/Mines | Discovered new exit (range 8) 1354 | -10/Mines | Reached level 4 1369 | -10/Mines | Discovered new exit (range 7) 1383 | -10/Mines | Learned location of Storage (-9) 1420 | -10/Mines | Discovered new exit (range 15) 1446 | -10/Mines | Deemed a non-threat by the Exiles lab entrance 1446 | -10/Mines | Discovered new exit (range 6) 1640 | -10/Mines | Entered Subcaves 1646 | -10/Subcaves | Shifting Twisted Machinery released Scrap Shield 1646 | -10/Subcaves | Upgraded with Utility slot (x1) 1652 | -10/Subcaves | Shifting Twisted Machinery released Mak. Light Armor Plating 2027 | -10/Subcaves | Upgraded with Utility slot (x1) 2052 | -10/Subcaves | A swath of the cavern ceiling suddenly collapsed 2069 | -10/Subcaves | Build established: Subdweller-Mutant 2554 | -10/Subcaves | A swath of the cavern ceiling suddenly collapsed 2862 | -10/Subcaves | Visited Clippyterm 2996 | -10/Subcaves | Disturbed a concealed Subdweller 3013 | -10/Subcaves | Learned Materials emergency access door positions 3129 | -10/Subcaves | Learned location of Zion (-7) 3129 | -10/Subcaves | Met a Zionite searching for "candidates" 3136 | -10/Subcaves | Shifting Twisted Machinery released Shrapnel Trap 3137 | -10/Subcaves | Discovered new exit (range 13) 3148 | -10/Subcaves | Shifting Twisted Machinery released Sub. Monowheel 3180 | -10/Subcaves | Ambushed by Subdwellers from Twisted Machinery 3299 | -10/Subcaves | Learned 4 Materials zone layouts 3339 | -10/Subcaves | Visited 4L-MR0's lab 3349 | -10/Subcaves | Found Gun Armor 3350 | -10/Subcaves | Attached Gun Armor, gained temporary slots: Weapon x2 3566 | -10/Subcaves | Discovered new exit (range 15) 3592 | -10/Subcaves | Reached level 5 3737 | -10/Subcaves | Entered Recycling 3745 | -9/Recycling | Found Scrap Engine 3825 | -9/Recycling | Reached level 6 4028 | -9/Recycling | Discovered new exit (range 15) 4058 | -9/Recycling | Build established: Mutant 4179 | -9/Recycling | Upgraded with Power slot (x1) 4179 | -9/Recycling | Upgraded with Propulsion slot (x1) 4179 | -9/Recycling | Upgraded with Utility slot (x1) 4751 | -9/Recycling | Entered Factory 4751 | -7/Factory | Accompanied by 1 ally 4753 | -7/Factory | Reached level 7 4856 | -7/Factory | Reached level 8 4866 | -7/Factory | Upgraded with Utility slot (x1) 4868 | -7/Factory | Fabricated O-24 Administrator (x1) 5190 | -7/Factory | Discovered new exit (range 14) 5493 | -7/Factory | Core integrity fell below 50% 5560 | -7/Factory | Build established: Hacker-Skirmisher 5608 | -7/Factory | Found Powered Armor 5783 | -7/Factory | Core integrity fell below 20% 5880 | -7/Factory | Reached level 9 5894 | -7/Factory | Destroyed by G-47 Trooper with Particle Gun Last Messages --------------- 05782_ Triggered Proton Bomb Trap. 05782_ A bubble of electromagnetic force engulfs the area. 05811_ Scrap Engine modifies Accelerated Assault Construct/G: Range +3, Shot Heat -26, Recoil -2 Renamed KE Assault Construct/G. 05835_ ALERT: Rogue bot located, Programmers report to Factory Zone 1M. 05862_ W-25 Informer sends out distress signal. 05874_ Critical hit (Burn: +26). 05874_ G-47 Trooper destroyed. 05874_ Switching to secondary target: G-47 Trooper. 05880_ Reached level 9. 05880_ G-47 Trooper destroyed. 05880_ Switching to secondary target: G-47 Trooper. 05892_ W-25 Informer sends out distress signal. 05892_ K-01 Serf collects debris. Map ----- +----------------------------------------------------+ | ?????????????????????????????????????????????????? | | ?????????????????????????????????????????????????? | | ?????????????????????????????????????????????????? | | ????????????????????????????????????#?##?????????# | | ?????????????????????????????????????????#?###???# | | ???????????????????????????#???#??#?#?#?????#???#? | | ???????????????????????????#?####??####??#??###??# | | ????????????????????????##?###?????#?##?####?????# | | ?????????????????????? ??##???????#########?##?### | | ?????????????????????? #?###??#?## ##?#### | | ???????????????????? #????"?" ?### * ####??# | | ???????????????????? # ? ""?"?##?# """ ####?#? | | ??????????????????""?#?#??""??#### """ """ #####?# | | ???????????????????"?+ ? """? #### "R """ ####?#? | | ?????????????? ?"""?? # ? ?### """ #####?# | | ?????????????? ? ""? # #?? ? #### "" ]##???## | | ????????????? ? # ########### ####### | | ????????????#???##?#?# # #########+####### | | ???????????#?#?###?###?# "" ####### ##### | | ???????????#?#####?### # ?"S # %### "" ^ | | ???????????##?####??## #?"" # % % T < | | ?????????? ########### # # ### ^ | | ?????????? + ## #### ##### | | ????????? ? ? ## ############?# | | ????????? [######## ################## | | ????????? r r %%=@k % %#####?#########?## | | ??????????? ########g!* ########?##########?##?? | | ????????????? ?####### %! #?##?########?########## | | ?????????? ??######## ######################## | | ?????????? ??##?##### #################?###?## | | ?????????? ? ######## #?######?####?#######?#? | | ??????????? ??#?###### ##?#######?##?#######?## | | ???????????#? ?####### #?################?##?#? | | ???????????#? ??#?#?## #?############????#?#??? | | ????????????#?#???#?## #########?###?#????#?#?# | | ???????????#? #?##?#?# #########?##?#??##?????# | | ????????????????#?#### T####?##?###?#?#???#???? | | ??????????#????##??### #########??#??#???????? | | ??????????###????????# w###?#####?#??#?????????? | | ?????????#?????##????# ##?#?##?????#??????????? | | ?????????????????##?## ###???#??#?????????????? | | ????????????#??? ??#?#+##+###?????#??????????????? | | ???????????#?###??#??# ##?##????????????????? | | ??????????#????#???#?# ###??##??##??????#???? | | ???????????#?#??+#??## """ ####?????#????#??????? | | ?????????????????? ### """ ####??#?????##??##???? | | ?????????????????? # + """ #?####??#????????????? | | ????????????????"??### #?###??????????#?????? | | ?????????#?"????"??####+#####?#????#?##??????????# | | ???????????????????+ ################?????#???? | +----------------------------------------------------+ Best States ------------- Heat Dissipation 47 Energy Generation 17 Energy Capacity 300 Matter Stores 300 Matter Capacity 300 Sight Range 17 Terrain Scan Range 16 Terrain Scan Density 110 Armor Coverage 900 Evasion (%) 44 Targeting Accuracy 6 Recoil Reduction 1 Offensive Hacking 20 Defensive Hacking 15 Authchip Count 2 Item Schematics ----------------- Wheel | -10/Materials | Hacked Hvy. Rocket Launcher | -9/Recycling | Hacked Arm. Wheel | -9/Recycling | Hacked Adv. Treads | -9/Recycling | Hacked Actuator Array | -9/Recycling | Hacked Adv. System Restoration Module | -7/Factory | Hacked Hacking Suite | -7/Factory | Scanalyzed Robot Schematics ------------------ M-13 Machinist | -10/Materials | Hacked O-16 Technician | -10/Materials | Hacked Fabricated ------------ O-24 Administrator | x1 | -7/Factory | Preloaded Alien Tech Used ----------------- None Achievements -------------- None Challenges ------------ None RPGLIKE | -11 -10 -10 -10 -9 -7 --------- Run | Yrd Mat Min Sub Rec Fac Levels Raised 8 | . 1 2 1 1 3 XP Earned 15031 | 3000 2803 1780 1569 2580 3299 XP Spent 13470 | 2920 1300 . 3250 3000 3000 Upgrades 22 | 12 2 . 3 3 2 Power Slot 1 | . . . . 1 . Propulsion Slot 2 | 1 . . . 1 . Utility Slot 6 | 1 1 . 2 1 1 Weapon Slot 1 | . 1 . . . . Heat Dissipation 2 | 2 . . . . . Mass Support 1 | 1 . . . . . Inventory Capacity 4 | 2 . . 1 . 1 Sight Range 1 | 1 . . . . . Terrain Scan Density 1 | 1 . . . . . Hack Attack % 2 | 2 . . . . . Hack Defense % 1 | 1 . . . . . Protomatter Created 706 | . 56 159 202 93 196 Integrity Restored 1628 | . 249 335 511 246 287 Core 1294 | . 238 248 422 175 211 Parts 334 | . 11 87 89 71 76 Protomatter Decayed 215 | . . 3 139 51 22 Game ------ Seed MagneticDisposableMaul Manual? 0 Play Time 00:52:57 Cumulative 697.0 hours Start 2024.04.11 @ 13:27:09 End 2024.04.11 @ 14:17:24 Sessions 1 Manual Loads 0 Difficulty Rogue Special Mode Winter2019/RPGLIKE Game No. 286 Rogue 258 Adventurer 3 Explorer 25 Win Type - Total 16 Types 10/3/1/1/0/1/0/0/0 Lore% 91 Gallery% 96 Achievement% 85 Wizard Run 0 Options --------- Layout 2 ASCII 0 Keyboard 0 Movement Numpad Keybinds 0 Fullscreen 2 Font 24/Smallcaps Map View 50x44 Zoom Use 0% Tactical HUD 1 Map Filters NONE Filters NONE Steam X RUN: 4edce90a-59c9-4fff-b626-a2f1304bcb44